fUST/lending_fUST_20240601
["ID","MTS","AMOUNT","RATE_DAILY","PERIOD"]
[328353814,1717219837254,-633.61647002,0.00021917,2]
[328353815,1717219837264,-500.0,0.00021917,2]
[328353816,1717219837273,-500.0,0.00021917,2]
[328353817,1717219837283,-522.5,0.00021917,2]
[328353818,1717219837292,-500.0,0.00021917,2]
[328353819,1717219837302,-500.0,0.00021917,2]
[328353820,1717219837312,-500.0,0.00021917,2]
[328353821,1717219837321,-500.0,0.00021917,2]
[328353822,1717219837331,-1122.04,0.00021917,2]
[328353823,1717219837342,-500.0,0.00021917,2]
[328353824,1717219837351,-935.88,0.00021917,2]
[328353825,1717219837360,-500.0,0.00021917,2]
[328353826,1717219837370,-500.0,0.00021917,2]
[328353827,1717219837379,-249.69942652,0.00021917,2]
[328353828,1717219837389,-500.0,0.00021917,2]
[328353829,1717219837398,-500.0,0.00021917,2]
[328353830,1717219837407,-1374.49,0.00021917,2]
[328353831,1717219837417,-1607.1,0.00021917,2]
[328353832,1717219837426,-500.0,0.00021917,2]
[328353833,1717219837435,-1418.56,0.00021917,2]
[328353834,1717219837445,-500.0,0.00021917,2]
[328353835,1717219837454,-500.0,0.00021917,2]
[328353836,1717219837463,-500.0,0.00021917,2]
[328353837,1717219837472,-500.0,0.00021917,2]
[328353838,1717219837482,-500.0,0.00021917,2]
[328353839,1717219837491,-500.0,0.00021917,2]
[328353840,1717219837500,-500.0,0.00021917,2]
[328353841,1717219837510,-500.0,0.00021917,2]
[328353842,1717219837519,-495.64949236,0.00021917,2]
[328353843,1717219837529,-500.0,0.00021917,2]
[328353844,1717219837538,-500.0,0.00021917,2]
[328353845,1717219837547,-500.0,0.00021917,2]
[328353846,1717219837557,-559.06,0.00021917,2]
[328353847,1717219837567,-500.0,0.00021917,2]
[328353848,1717219837576,-500.0,0.00021917,2]
[328353850,1717219837586,-500.0,0.00021917,2]
[328353852,1717219837596,-500.0,0.00021917,2]
[328353853,1717219837605,-500.0,0.00021917,2]
[328353854,1717219837615,-1561.3,0.00021917,2]
[328353855,1717219837624,-500.0,0.00021917,2]
[328353857,1717219837633,-537.67,0.00021917,2]
[328353859,1717219837643,-626.22,0.00021917,2]
[328353861,1717219837652,-500.0,0.00021917,2]
[328353863,1717219837661,-640.18,0.00021917,2]
[328353865,1717219837671,-500.0,0.00021917,2]
[328353866,1717219837680,-500.0,0.00021917,2]
[328353867,1717219837689,-669.23,0.00021917,2]
[328353868,1717219837699,-508.07330017,0.00021917,2]
[328353869,1717219837708,-500.0,0.00021917,2]
[328353870,1717219837717,-500.0,0.00021917,2]
[328353871,1717219837726,-789.69,0.00021917,2]
[328353872,1717219837736,-500.0,0.00021917,2]
[328353873,1717219837745,-500.0,0.00021917,2]
[328353874,1717219837755,-500.0,0.00021917,2]
[328353875,1717219837764,-2375.56,0.00021917,2]
[328353876,1717219837774,-500.0,0.00021917,2]
[328353877,1717219837783,-500.0,0.00021917,2]
[328353878,1717219837793,-500.0,0.00021917,2]
[328353879,1717219837802,-500.0,0.00021917,2]
[328353880,1717219837811,-898.98,0.00021917,2]
[328353881,1717219837820,-500.0,0.00021917,2]
[328353882,1717219837830,-669.74,0.00021917,2]
[328353883,1717219837839,-331.11565735,0.00021917,2]
[328353884,1717219837852,-535.82274601,0.00021917,2]
[328353885,1717219837861,-1357.97,0.00021917,2]
[328353886,1717219837871,-699.51,0.00021917,2]
[328353887,1717219837881,-776.63,0.00021917,2]
[328353888,1717219837891,-500.0,0.00021917,2]
[328353889,1717219837900,-500.0,0.00021917,2]
[328353890,1717219837910,-185.41740206,0.00021917,2]
[328353891,1717219837919,-507.00210297,0.00021917,2]
[328353892,1717219837929,-500.0,0.00021917,2]
[328353893,1717219837938,-419.83932938,0.00021917,2]
[328353894,1717219837947,-500.0,0.00021917,2]
[328353896,1717219837956,-503.97605283,0.00021917,2]
[328353898,1717219837965,-500.0,0.00021917,2]
[328353900,1717219837975,-500.0,0.00021917,2]
[328353902,1717219837984,-500.0,0.00021917,2]
[328353904,1717219837994,-988.55,0.00021917,2]
[328353906,1717219838003,-740.53,0.00021917,2]
[328353907,1717219838012,-500.0,0.00021917,2]
[328353908,1717219838022,-500.0,0.00021917,2]
[328353909,1717219838031,-500.0,0.00021917,2]
[328353910,1717219838041,-500.0,0.00021917,2]
[328353911,1717219838050,-500.0,0.00021917,2]
[328353912,1717219838060,-500.0,0.00021917,2]
[328353913,1717219838070,-500.0,0.00021917,2]
[328353914,1717219838080,-500.0,0.00021917,2]
[328353915,1717219838089,-150.63595056,0.00021917,2]
[328353916,1717219838099,-500.0,0.00021917,2]
[328353917,1717219838109,-500.0,0.00021917,2]
[328353918,1717219838118,-500.0,0.00021917,2]
[328353919,1717219838127,-500.0,0.00021917,2]
[328353920,1717219838137,-500.0,0.00021917,2]
[328353921,1717219838146,-827.12,0.00021917,2]
[328353922,1717219838155,-1151.12,0.00021917,2]
[328353923,1717219838165,-500.0,0.00021917,2]
[328353924,1717219838174,-500.0,0.00021917,2]
[328353925,1717219838183,-500.0,0.00021917,2]
[328353926,1717219838192,-500.0,0.00021917,2]
[328353927,1717219838276,-512.3108445,0.00021917,2]
[328353928,1717219838286,-669.89,0.00021917,2]
[328353929,1717219838295,-1300.09,0.00021917,2]
[328353930,1717219838304,-606.38,0.00021917,2]
[328353931,1717219838314,-500.0,0.00021917,2]
[328353932,1717219838323,-500.0,0.00021917,2]
[328353933,1717219838332,-823.66,0.00021917,2]
[328353934,1717219838342,-500.0,0.00021917,2]
[328353935,1717219838351,-3961.54,0.00021917,2]
[328353936,1717219838361,-500.0,0.00021917,2]
[328353937,1717219838370,-500.0,0.00021917,2]
[328353938,1717219838380,-633.29,0.00021917,2]
[328353939,1717219838389,-1916.25,0.00021917,2]
[328353940,1717219838398,-500.0,0.00021917,2]
[328353941,1717219838407,-153.46565569,0.00021917,2]
[328353942,1717219838417,-500.0,0.00021917,2]
[328353943,1717219838426,-500.0,0.00021917,2]
[328353944,1717219838436,-500.0,0.00021917,2]
[328353945,1717219838445,-500.0,0.00021917,2]
[328353946,1717219838454,-500.0,0.00021917,2]
[328353947,1717219838464,-691.56,0.00021917,2]
[328353948,1717219838473,-732.85,0.00021917,2]
[328353949,1717219838482,-424.88529592,0.00021917,2]
[328353950,1717219838492,-500.0,0.00021917,2]
[328353951,1717219838501,-500.0,0.00021917,2]
[328353952,1717219838511,-500.0,0.00021917,2]
[328353953,1717219838521,-500.0,0.00021917,2]
[328353954,1717219838530,-500.0,0.00021917,2]
[328353955,1717219838541,-500.0,0.00021917,2]
[328353956,1717219838550,-500.0,0.00021917,2]
[328353957,1717219838559,-1298.06,0.00021917,2]
[328353958,1717219838568,-500.0,0.00021917,2]
[328353959,1717219838578,-1670.66,0.00021917,2]
[328353960,1717219838587,-500.0,0.00021917,2]
[328353961,1717219838598,-548.33,0.00021917,2]
[328353962,1717219838607,-717.27,0.00021917,2]
[328353963,1717219838617,-652.79,0.00021917,2]
[328353964,1717219838626,-500.0,0.00021917,2]
[328353965,1717219838635,-1289.19,0.00021917,2]
[328353966,1717219838645,-500.0,0.00021917,2]
[328353967,1717219838654,-500.0,0.00021917,2]
[328353968,1717219838663,-787.64,0.00021917,2]
[328353969,1717219838673,-500.0,0.00021917,2]
[328353970,1717219838682,-500.0,0.00021917,2]
[328353971,1717219838692,-500.0,0.00021917,2]
[328353972,1717219838701,-500.0,0.00021917,2]
[328353973,1717219838710,-500.0,0.00021917,2]
[328353974,1717219838719,-500.0,0.00021917,2]
[328353975,1717219838728,-500.0,0.00021917,2]
[328353976,1717219838737,-296.55569449,0.00021917,2]
[328353977,1717219838746,-513.07097321,0.00021917,2]
[328353978,1717219838755,-988.99,0.00021917,2]
[328353979,1717219838763,-512.97,0.00021917,2]
[328353980,1717219838784,-500.0,0.00021917,2]
[328353981,1717219838799,-500.0,0.00021917,2]
[328353982,1717219838816,-500.0,0.00021917,2]
[328353983,1717219838834,-500.0,0.00021917,2]
[328353984,1717219838855,-170.59429487,0.00021917,2]
[328353985,1717219838872,-500.0,0.00021917,2]
[328353986,1717219838890,-2129.8,0.00021917,2]
[328353987,1717219838905,-500.0,0.00021917,2]
[328353988,1717219838922,-500.0,0.00021917,2]
[328353989,1717219838940,-631.41,0.00021917,2]
[328353990,1717219838959,-500.0,0.00021917,2]
[328353991,1717219838971,-472.92912203,0.00021917,2]
[328354006,1717219840630,166.666666,0.00013699,2]
[328354049,1717219843475,-1099.1612185,0.00015,2]
[328354050,1717219843485,-322.15625615,0.00021903,2]
[328354051,1717219843494,-500.0,0.00021903,2]
[328354052,1717219843503,-500.0,0.00021903,2]
[328354053,1717219843513,-450.95688966,0.00021903,2]
[328354054,1717219843522,-500.0,0.00021903,2]
[328354055,1717219843532,-500.0,0.00021903,2]
[328354056,1717219843541,-1305.08982726,0.00021903,2]
[328354057,1717219843551,-500.0,0.00021903,2]
[328354058,1717219843561,-500.0,0.00021903,2]
[328354059,1717219843570,-74.13199148,0.00021903,2]
[328354114,1717220477889,166.666666,0.00013699,2]
[328354115,1717220703498,150.0,0.00030935,33]
[328354119,1717220814327,151.0,0.00030935,33]
[328354120,1717220832286,387.02234805,9.999e-05,2]
[328354121,1717220832967,152.0,0.00030935,33]
[328354122,1717220943874,325.95107979,9.999e-05,2]
[328354408,1717221035953,166.666666,0.00013699,2]
[328354419,1717221038095,-534.71803,0.00019431,2]
[328354420,1717221038105,-3499.69131646,0.00019701,2]
[328354421,1717221038117,-13781.04051737,0.00019701,2]
[328354422,1717221038134,-7619.26816617,0.00019701,2]
[328354423,1717221038143,-322.51862338,0.00020008,2]
[328354424,1717221038152,-325.95107979,0.00020895,2]
[328354425,1717221038162,-630.80278975,0.00020896,2]
[328354426,1717221038171,-681.03418145,0.000209,2]
[328354427,1717221038181,-198.2185019,0.00021,2]
[328354428,1717221038190,-10059.36598692,0.00021,2]
[328354429,1717221038200,-536.43448042,0.00021,2]
[328354430,1717221038216,-1452.79973995,0.00021,2]
[328354443,1717221632884,166.666666,0.00013699,2]
[328354459,1717221958342,168.03220278,9.999e-05,2]
[328354462,1717222022489,325.95107979,9.999e-05,2]
[328354475,1717222119639,300.0,0.00030937,33]
[328354487,1717222200527,529.51923279,9.999e-05,2]
[328354570,1717222232895,-10473.1254341,0.00017997,2]
[328354572,1717222232904,-944.54979949,0.00017997,2]
[328354574,1717222232914,-2171.37095664,0.00017998,2]
[328354845,1717222238409,-2304.54738321,0.00017998,2]
[328354846,1717222238422,-10333.05526244,0.00017998,2]
[328354847,1717222238453,-30266.59264409,0.00017998,2]
[328354848,1717222238465,-4272.59603,0.00017998,2]
[328354854,1717222243716,-110.95423261,0.00017998,2]
[328354869,1717222249584,166.666666,0.00013699,2]
[328354873,1717222632071,168.03220278,9.999e-05,2]
[328354874,1717222806026,166.666666,0.00013699,2]
[328354877,1717223034616,16173.06263081,0.00013699,2]
[328354878,1717223052577,16173.06263081,0.00013699,2]
[328354879,1717223074547,15921.28168095,0.00013699,2]
[328354911,1717223370521,168.03220278,9.999e-05,2]
[328354937,1717223432602,-267.64867022,0.00017557,2]
[328354939,1717223432612,-2248.40617488,0.00017998,2]
[328354990,1717223438860,-1363.23844734,0.00017998,2]
[328355003,1717223442401,-603.98478864,0.00017998,2]
[328355033,1717223443912,-318.41271715,0.00017998,2]
[328355036,1717223446734,-598.30034209,0.00017998,2]
[328355037,1717223481647,166.666666,0.00013699,2]
[328355039,1717223517050,157.50929972,9.999e-05,2]
[328355040,1717223523604,284.17736358,0.000137,2]
[328355041,1717223535781,721.35032538,9.999e-05,2]
[328355043,1717223616134,2097.22660282,9.999e-05,2]
[328355047,1717223632032,2098.61739437,9.999e-05,2]
[328355049,1717223692501,659.16648838,9.999e-05,2]
[328355059,1717223989602,168.03220278,9.999e-05,2]
[328355060,1717224171431,166.666666,0.00013699,2]
[328355079,1717224564701,659.16648838,9.999e-05,2]
[328355157,1717224631990,-522.51862338,0.00016347,2]
[328355161,1717224631999,-292.0207383,0.00016348,2]
[328355165,1717224632009,-380.131126,0.00016561,2]
[328355169,1717224632019,-1258.33236836,0.00016612,2]
[328355172,1717224632031,-40787.2802105,0.00016612,2]
[328355175,1717224632041,-24900.0,0.00016613,2]
[328355178,1717224632050,-217.77958663,0.00017795,2]
[328355641,1717224637873,-808.60554993,0.00017795,2]
[328355643,1717224637885,-341.51697593,0.00017795,2]
[328355645,1717224637898,-1372.37173156,0.00017795,2]
[328355646,1717224637915,-1488.7927719,0.00017795,2]
[328355647,1717224637924,-154.98472799,0.00017898,2]
[328355648,1717224637936,-621.49349646,0.00017898,2]
[328355649,1717224637947,-3355.3019841,0.00017998,2]
[328355664,1717224641706,-12337.62482823,0.00017998,2]
[328355665,1717224641716,-897.38565272,0.00018,2]
[328355666,1717224641727,-150.30596503,0.00018295,2]
[328355667,1717224641739,-284.6583063,0.00018699,2]
[328355668,1717224641748,-159.56018718,0.000188,2]
[328355669,1717224641757,-1255.00426428,0.000189,2]
[328355670,1717224641767,-166.461261,0.00019178,2]
[328355671,1717224641778,-776.47822442,0.00019241,2]
[328355672,1717224641788,-159.56018716,0.00019554,2]
[328355673,1717224641797,-218.88693727,0.0002,5]
[328355674,1717224641807,-153.9499435,0.0002,2]
[328355675,1717224641816,-284.65830629,0.00020198,2]
[328355676,1717224641825,-275.7412294,0.00020274,2]
[328355677,1717224641835,-159.56018716,0.00020309,2]
[328355678,1717224641845,-776.47822442,0.00020583,2]
[328355679,1717224641854,-154.43981396,0.0002079,2]
[328355680,1717224641863,-921.42341344,0.00020819,2]
[328355681,1717224641873,-620.54013949,0.00020844,2]
[328355682,1717224641884,-152.01,0.0002099,3]
[328355683,1717224641895,-228.08668634,0.00021,2]
[328355684,1717224641910,-3843.19846453,0.00021,2]
[328355685,1717224641921,-159.56018716,0.00021063,2]
[328355686,1717224641930,-984.85639107,0.00021651,2]
[328355687,1717224641940,-284.65830629,0.00021697,2]
[328355688,1717224641951,-518.511,0.00021732,2]
[328355689,1717224641964,-218.17,0.00021732,2]
[328355690,1717224641973,-218.66431637,0.00021786,3]
[328355706,1717224701819,166.666666,0.00013699,2]
[328355707,1717224720728,155.72734135,0.00013699,2]
[328355708,1717224735388,837.0309747,9.999e-05,2]
[328355709,1717224736313,154.98450155,9.999e-05,2]
[328355710,1717224736540,154.98450155,9.999e-05,2]
[328355711,1717224758308,284.17736358,0.000137,2]
[328355712,1717224761925,154.98450155,9.999e-05,2]
[328355713,1717224766839,154.98450155,9.999e-05,2]
[328355714,1717224779492,154.98450155,9.999e-05,2]
[328355718,1717225006106,325.95107979,9.999e-05,2]
[328355719,1717225096428,164.41093974,9.999e-05,2]
[328355720,1717225153499,24900.0,0.00013862,2]
[328355721,1717225178881,242.23,0.00010959,2]
[328355722,1717225189406,201.86,0.00010959,2]
[328355723,1717225198193,190.065563,0.00013699,2]
[328355724,1717225200147,168.22,0.00010959,2]
[328355725,1717225210914,841.12,0.00010959,2]
[328355726,1717225269591,166.666666,0.00013699,2]
[328355727,1717225295773,272.23220278,9.999e-05,2]
[328355728,1717225375542,154.98450155,9.999e-05,2]
[328355729,1717225385778,284.17736358,0.000137,2]
[328355732,1717225402583,154.98450155,9.999e-05,2]
[328355733,1717225444071,-9576.46137373,0.00014502,2]
[328355734,1717225444091,-1901.24964467,0.00014503,2]
[328355735,1717225444113,-59500.20595982,0.00014504,2]
[328355736,1717225444136,-29022.08302178,0.00014505,2]
[328355737,1717225445453,154.98450155,9.999e-05,2]
[328355739,1717225506882,1280.27953886,9.999e-05,2]
[328355744,1717225562889,-186.1535517,0.00014508,2]
[328355745,1717225562910,-19813.8464483,0.00014607,2]
[328355752,1717225598937,-4943.36853488,0.00014607,2]
[328355753,1717225598958,-2557.9422314,0.00014608,2]
[328355754,1717225598978,-12498.68923372,0.00014786,2]
[328355766,1717225655822,659.16648838,9.999e-05,2]
[328355767,1717225656061,-272.23220278,0.00014785,2]
[328355768,1717225656085,-9178.82170521,0.00014786,2]
[328355769,1717225656105,-8548.94609201,0.00014787,2]
[328355777,1717225682130,2034.12275766,9.999e-05,2]
[328355787,1717225735849,154.98450155,9.999e-05,2]
[328355814,1717225792499,166.666666,0.00013699,2]
[328355832,1717225832122,-59500.20595982,0.00014785,2]
[328355834,1717225832131,-22687.25358771,0.00014786,2]
[328355836,1717225832141,-3427.71158997,0.00014787,2]
[328355839,1717225832152,-4863.73736116,0.00014787,2]
[328355952,1717225838162,-4749.77231965,0.00014787,2]
[328355954,1717225838171,-862.77734915,0.00016333,2]
[328356072,1717225841800,-81.77245034,0.00016333,2]
[328356074,1717225841810,-1099.1612185,0.00016334,2]
[328356076,1717225841819,-564.71249817,0.00016335,2]
[328356079,1717225841829,-1140.96273576,0.00016436,2]
[328356081,1717225841838,-275.21537347,0.000165,2]
[328356083,1717225841847,-140.25469858,0.00016834,2]
[328356085,1717225841860,-24759.74530142,0.00016834,2]
[328356087,1717225841869,-237.220117,0.00016866,2]
[328356089,1717225841879,-272.23220278,0.00017822,2]
[328356091,1717225841889,-564.71249816,0.00017823,2]
[328356093,1717225841898,-4481.51309791,0.00017897,2]
[328356095,1717225841910,-1291.13940657,0.00017897,2]
[328356217,1717225843388,-3791.22371344,0.00017897,2]
[328356219,1717225843399,-2205.96204977,0.00017897,2]
[328356240,1717225843602,-6294.75418142,0.00017897,2]
[328356242,1717225843611,-188.6457151,0.00018197,2]
[328356244,1717225843621,-250.0,0.00018297,2]
[328356246,1717225843629,-188.6457151,0.00018638,2]
[328356248,1717225843639,-10473.1254341,0.00018897,2]
[328356250,1717225843648,-151.0,0.00018899,2]
[328356252,1717225843657,-1647.9432262,0.000189,2]
[328356254,1717225843666,-162.84879519,0.00019,2]
[328356256,1717225843675,-188.6457151,0.00019078,2]
[328356258,1717225843684,-285.15119638,0.00019176,2]
[328356260,1717225843694,-209.61868714,0.00019176,2]
[328356261,1717225843703,-155.01713497,0.00019176,2]
[328356263,1717225843712,-623.90433287,0.00019176,2]
[328356265,1717225843722,-152.295581,0.00019176,2]
[328356267,1717225843731,-19282.80487639,0.00019176,2]
[328356269,1717225843739,-151.0,0.00019176,2]
[328356283,1717225843749,-1749.00514191,0.00019176,5]
[328356285,1717225843860,-1749.00514191,0.00019176,5]
[328356287,1717225843869,-1749.00514191,0.00019176,5]
[328356289,1717225843878,-1749.00514191,0.00019176,5]
[328356290,1717225843888,-580.9411367,0.00019176,2]
[328356292,1717225843898,-1749.00514191,0.00019176,5]
[328356294,1717225843907,-1749.00514191,0.00019176,5]
[328356296,1717225843917,-1749.00514191,0.00019176,5]
[328356298,1717225843926,-1749.00514191,0.00019176,5]
[328356299,1717225843935,-1734.62079356,0.00019176,2]
[328356300,1717225843944,-1749.00514191,0.00019176,5]
[328356301,1717225843954,-155.08701201,0.00019176,2]
[328356302,1717225843963,-151.0,0.00019176,2]
[328356303,1717225843972,-264.59972,0.00019176,2]
[328356304,1717225843982,-151.0,0.00019176,2]
[328356305,1717225843993,-151.0,0.00019176,2]
[328356306,1717225844002,-151.0,0.00019176,2]
[328356307,1717225844013,-151.0,0.00019176,2]
[328356308,1717225844022,-151.0,0.00019176,2]
[328356309,1717225844031,-151.0,0.00019176,2]
[328356310,1717225844042,-155.17932587,0.00019177,2]
[328356311,1717225844051,-2090.62762469,0.00019177,2]
[328356312,1717225844061,-612.66441887,0.00019177,2]
[328356313,1717225844071,-151.0,0.00019177,2]
[328356314,1717225844081,-154.807405,0.00019177,2]
[328356315,1717225844091,-151.0,0.00019177,2]
[328356316,1717225844102,-4306.91561159,0.00019178,7]
[328356317,1717225844112,-500.0,0.00019178,2]
[328356318,1717225844121,-258.8607761,0.00019178,2]
[328356319,1717225844130,-500.0,0.00019178,2]
[328356320,1717225844140,-500.0,0.00019178,2]
[328356321,1717225844151,-500.0,0.00019178,2]
[328356322,1717225844160,-500.0,0.00019178,2]
[328356323,1717225844170,-490.0,0.00019178,2]
[328356324,1717225844179,-1224.85764313,0.00019178,2]
[328356325,1717225844188,-500.0,0.00019178,2]
[328356326,1717225844197,-500.0,0.00019178,2]
[328356327,1717225844208,-500.0,0.00019178,2]
[328356328,1717225844217,-500.0,0.00019178,2]
[328356329,1717225844226,-1224.85764313,0.00019178,2]
[328356330,1717225844237,-246.89042011,0.00019178,2]
[328356331,1717225844247,-536.29296575,0.00019178,2]
[328356332,1717225844257,-500.0,0.00019178,2]
[328356333,1717225844267,-351.61787192,0.00019178,2]
[328356334,1717225844277,-359.38593117,0.00019178,2]
[328356335,1717225844286,-1224.85764313,0.00019178,2]
[328356336,1717225844295,-500.0,0.00019178,2]
[328356337,1717225844305,-500.0,0.00019178,2]
[328356338,1717225844314,-1224.85764313,0.00019178,2]
[328356339,1717225844324,-500.0,0.00019178,2]
[328356340,1717225844333,-1224.85764313,0.00019178,2]
[328356341,1717225844343,-500.0,0.00019178,2]
[328356342,1717225844352,-1224.85764313,0.00019178,2]
[328356343,1717225844361,-500.0,0.00019178,2]
[328356344,1717225844372,-1224.85764313,0.00019178,2]
[328356345,1717225844381,-571.78767108,0.00019178,2]
[328356346,1717225844391,-500.0,0.00019178,2]
[328356347,1717225844400,-1224.85764313,0.00019178,2]
[328356348,1717225844411,-500.0,0.00019178,2]
[328356349,1717225844420,-500.0,0.00019178,2]
[328356350,1717225844432,-1224.85764313,0.00019178,2]
[328356351,1717225844442,-500.0,0.00019178,2]
[328356352,1717225844451,-500.0,0.00019178,2]
[328356353,1717225844461,-500.0,0.00019178,2]
[328356354,1717225844470,-500.0,0.00019178,2]
[328356355,1717225844479,-1224.85764313,0.00019178,2]
[328356356,1717225844491,-500.0,0.00019178,2]
[328356357,1717225844501,-500.0,0.00019178,2]
[328356358,1717225844510,-1224.85764313,0.00019178,2]
[328356359,1717225844520,-500.0,0.00019178,2]
[328356360,1717225844529,-500.0,0.00019178,2]
[328356361,1717225844538,-500.0,0.00019178,2]
[328356362,1717225844547,-500.0,0.00019178,2]
[328356363,1717225844556,-500.0,0.00019178,2]
[328356364,1717225844565,-500.0,0.00019178,2]
[328356365,1717225844574,-1224.85764313,0.00019178,2]
[328356366,1717225844583,-500.0,0.00019178,2]
[328356367,1717225844593,-500.0,0.00019178,2]
[328356368,1717225844602,-500.0,0.00019178,2]
[328356369,1717225844611,-1224.85764313,0.00019178,2]
[328356370,1717225844622,-500.0,0.00019178,2]
[328356371,1717225844630,-500.0,0.00019178,2]
[328356372,1717225844640,-1224.85764313,0.00019178,2]
[328356373,1717225844649,-500.0,0.00019178,2]
[328356374,1717225844658,-1224.85764313,0.00019178,2]
[328356375,1717225844668,-500.0,0.00019178,2]
[328356376,1717225844678,-1224.85764313,0.00019178,2]
[328356377,1717225844687,-500.0,0.00019178,2]
[328356378,1717225844697,-1224.85764313,0.00019178,2]
[328356379,1717225844707,-1224.85764313,0.00019178,2]
[328356380,1717225844716,-500.0,0.00019178,2]
[328356381,1717225844725,-500.0,0.00019178,2]
[328356382,1717225844735,-1224.85764313,0.00019178,2]
[328356383,1717225844744,-1224.85764313,0.00019178,2]
[328356384,1717225844753,-199.54619424,0.00019178,2]
[328356385,1717225844762,-500.0,0.00019178,2]
[328356386,1717225844771,-1224.85764313,0.00019178,2]
[328356387,1717225844780,-1224.85764313,0.00019178,2]
[328356388,1717225844790,-1224.85764313,0.00019178,2]
[328356389,1717225844799,-1224.85764313,0.00019178,2]
[328356390,1717225844808,-1224.85764313,0.00019178,2]
[328356391,1717225844817,-2608.11121539,0.00019178,2]
[328356392,1717225844827,-2608.11121539,0.00019178,2]
[328356393,1717225844835,-2608.11121539,0.00019178,2]
[328356394,1717225844844,-2608.11121539,0.00019178,2]
[328356395,1717225844853,-2608.11121539,0.00019178,2]
[328356396,1717225844862,-500.0,0.00019178,2]
[328356397,1717225844872,-2608.11121539,0.00019178,2]
[328356398,1717225844881,-300.0,0.00019178,2]
[328356399,1717225844890,-2608.11121539,0.00019178,2]
[328356400,1717225844899,-500.0,0.00019178,2]
[328356401,1717225844908,-2608.11121539,0.00019178,2]
[328356402,1717225844918,-500.0,0.00019178,2]
[328356403,1717225844927,-2608.11121539,0.00019178,2]
[328356404,1717225844936,-500.0,0.00019178,2]
[328356405,1717225844945,-2608.11121539,0.00019178,2]
[328356406,1717225844954,-500.0,0.00019178,2]
[328356407,1717225844963,-2608.11121539,0.00019178,2]
[328356408,1717225844971,-2608.11121539,0.00019178,2]
[328356409,1717225844982,-2608.11121539,0.00019178,2]
[328356410,1717225844991,-2608.11121539,0.00019178,2]
[328356411,1717225845000,-2608.11121539,0.00019178,2]
[328356412,1717225845009,-2608.11121539,0.00019178,2]
[328356413,1717225845018,-2608.11121539,0.00019178,2]
[328356414,1717225845028,-2608.11121539,0.00019178,2]
[328356415,1717225845038,-2608.11121539,0.00019178,2]
[328356416,1717225845048,-2608.11121539,0.00019178,2]
[328356417,1717225845059,-2608.11121539,0.00019178,2]
[328356418,1717225845069,-2616.9933279,0.00019178,2]
[328356419,1717225845079,-2616.9933279,0.00019178,2]
[328356420,1717225845089,-2616.9933279,0.00019178,2]
[328356421,1717225845098,-2616.9933279,0.00019178,2]
[328356422,1717225845107,-2616.9933279,0.00019178,2]
[328356423,1717225845116,-2616.9933279,0.00019178,2]
[328356424,1717225845198,-2616.9933279,0.00019178,2]
[328356425,1717225845209,-2616.9933279,0.00019178,2]
[328356426,1717225845219,-2616.9933279,0.00019178,2]
[328356427,1717225845229,-2616.9933279,0.00019178,2]
[328356428,1717225845239,-2616.9933279,0.00019178,2]
[328356429,1717225845251,-2616.9933279,0.00019178,2]
[328356430,1717225845262,-2616.9933279,0.00019178,2]
[328356431,1717225845272,-1664.13361893,0.00019178,2]
[328356434,1717225846049,-952.85970897,0.00019178,2]
[328356435,1717225846059,-824.52297564,0.00019178,2]
[328356436,1717225846071,-1380.2939031,0.00019178,2]
[328356437,1717225846080,-424.0295199,0.00019178,2]
[328356439,1717225846091,-1780.78735884,0.00019178,2]
[328356441,1717225846100,-2204.81687874,0.00019178,2]
[328356443,1717225846110,-2204.81687874,0.00019178,2]
[328356445,1717225846120,-2204.81687874,0.00019178,2]
[328356447,1717225846130,-400.80698775,0.00019178,2]